Cogmind - Beta 10.2 @@@ ROGUE MODE // 2020.11.13 @ 22:17:09 // Halloween2020/ForbiddenLore Player: Ty Piggbottom Result: Destroyed by as-95041 with Assembled Rifle Performance ------------- Evolutions (0) 0 Regions Visited (4) 800 Robots Destroyed (41) 205 Value Destroyed (601) 601 Prototype IDs (23) 460 Alien Tech Used (0) 0 Bonus (360) 360 TOTAL SCORE: 2426 Bonus ------- Follower Combat Kills 60 Aligned with FarCom 300 Cogmind --------- Core Integrity 0/250 Matter 70/300 Energy 275/275 System Corruption 0% Temperature Cool (0) Movement Rolling (120) Ox4 Location -9/Mines Parts ------- > --- POWER (1) -------- Deuterium Engine > --- PROPULSION (2) --- Wheel Wheel > --- UTILITY (2) ------ Humpback > --- WEAPON (2) ------- Assault Rifle > --- INVENTORY (24) --- Wheel Improved Heat Sink Large Storage Unit High-capacity Storage Unit Humpback High-capacity Battery (400) Advanced Sensor Array Improved Terrain Scan Processor Transport Network Coupler Particle Charger Light Armor Plating Firepult Shock Bomb Launcher Grenade Launcher Makeshift Hammer Peak State ------------ > --- POWER ------------ Deuterium Engine > --- PROPULSION ------- Wheel Wheel > --- UTILITY ---------- Humpback > --- WEAPON ----------- Firepult > --- INVENTORY -------- Improved Heat Sink Large Storage Unit High-capacity Storage Unit Humpback Humpback Advanced Sensor Array Improved Terrain Scan Processor Transport Network Coupler Particle Charger Light Armor Plating Particle Gun Assault Rifle Shock Bomb Launcher Grenade Launcher Makeshift Hammer [Rating: 30] Favorites ----------- Power Light Nuclear Core Engine Deuterium Engine Power Core Light Nuclear Core Propulsion Wheel Wheel Wheel Hover Unit Hover Unit Utility High-capacity Storage Unit Device Sensor Array Storage High-capacity Storage Unit Processor Signal Interpreter Protection Light Armor Plating Weapon Particle Gun Energy Gun Particle Gun Energy Cannon Firepult Ballistic Gun Assault Rifle Launcher Grenade Launcher Impact Weapon Makeshift Hammer Build | -11 -10 -10 -10 -9 ------- Run | Scr Mat Min Exi Min Slots Evolved . | . . . . . Power . | . . . . . Propulsion . | . . . . . Utility . | . . . . . Weapon . | . . . . . Parts Attached 67 | 10 37 9 2 9 Power 7 | 2 4 1 . . Engine 4 | 2 1 1 . . Core 3 | . 3 . . . Reactor . | . . . . . Propulsion 19 | 3 15 . . 1 Treads . | . . . . . Leg . | . . . . . Wheel 13 | 3 9 . . 1 Hover 6 | . 6 . . . Flight . | . . . . . Utility 20 | 3 13 3 1 . Device 7 | 1 5 1 . . Storage 6 | 1 4 . 1 . Processor 4 | 1 2 1 . . Hackware . | . . . . . Protection 3 | . 2 1 . . Artifact . | . . . . . Weapon 21 | 2 5 5 1 8 Energy Gun 9 | 2 1 4 . 2 Energy Cannon 2 | . . . 1 1 Ballistic Gun 5 | . 4 . . 1 Ballistic Cannon . | . . . . . Launcher 4 | . . 1 . 3 Special Weapon . | . . . . . Impact Weapon 1 | . . . . 1 Slashing Weapon . | . . . . . Piercing Weapon . | . . . . . Special Melee Weapon . | . . . . . Unidentified Prototypes . | . . . . . Parts Lost 2 | . 1 . . 1 Power . | . . . . . Propulsion . | . . . . . Utility . | . . . . . Weapon 2 | . 1 . . 1 Highest Loss Streak 1 | . 1 . . 1 Average Slot Usage (%) 95 | . 98 100 86 76 Engine 6 | . 2 7 14 14 Core 7 | . 11 7 . . Wheel 25 | . 21 28 28 28 Hover 2 | . 6 . . . Device 2 | . 6 . . . Storage 13 | . 13 14 14 14 Processor 5 | . 2 6 11 . Protection 3 | . 4 6 . . Energy Gun 11 | . 16 11 4 2 Energy Cannon 2 | . . . 9 2 Ballistic Gun 10 | . 11 14 4 6 Launcher 1 | . . 2 . 6 Naked Turns . | . . . . . Heaviest Build 111 | 14 45 49 111 111 Greatest Support 26 | 26 26 20 20 20 Greatest Overweight (x) 5 | . 5 2 5 5 Average Overweight (x) 1 | . 1 2 2 4 Largest Inventory Capacity 24 | 6 14 12 24 24 Average Capacity 11 | 5 9 12 13 24 Most Carried 18 | 4 9 12 17 18 Average Carried 9 | 2 5 10 12 16 Final Capacity 24 | 4 12 12 24 24 Final Carried 17 | 4 8 12 16 17 Class Distribution -------------------- 58% | Mutant 31% | Scavenger-Mutant 10% | Hauler-Mutant Dominant Class ---------------- Mutant | -10/Materials Mutant | -10/Mines Mutant | -10/Exiles Hauler-Mutant | -9/Mines Resources | -11 -10 -10 -10 -9 ----------- Run | Scr Mat Min Exi Min Matter Collected 1148 | 287 658 165 . 38 Remotely 196 | . 196 . . . Salvage Created 1357 | 117 1019 134 . 87 Parts 84 | 4 65 12 . 3 Haulers Intercepted 2 | . 2 . . . Recyclers Shooed 2 | . 2 . . . Parts Field Recycled . | . . . . . Retrieved Matter . | . . . . . Parts Self-Destructed . | . . . . . Prevented . | . . . . . Kills | -11 -10 -10 -10 -9 ------- Run | Scr Mat Min Exi Min Combat Hostiles Destroyed 23 | . 11 6 . 6 Guns 15 | . 11 4 . . AOE 8 | . . 2 . 6 Classes Destroyed 10 | 2 6 . . 2 Worker 6 | . 5 . . 1 Builder 2 | . 1 . . 1 Tunneler 2 | 2 . . . . Hauler 2 | . 2 . . . Recycler 8 | 1 6 1 . . Watcher 3 | . 3 . . . Swarmer 9 | . 3 6 . . Grunt 8 | . 8 . . . Demolisher 1 | . . . . 1 Assembled 5 | . . . . 5 Best Kill Streak 4 | 3 4 3 . 3 Combat Bots Only 3 | . 2 3 . 3 Max Kills in Single Turn 3 | 1 1 2 . 3 Gunslinging . | . . . . . Exploded 3 | . . 2 . 3 Melee . | . . . . . Uniques/NPCs Destroyed . | . . . . . Combat | -11 -10 -10 -10 -9 -------- Run | Scr Mat Min Exi Min Damage Taken 986 | . 375 137 . 474 Core 259 | . 114 16 . 129 Absorbed by Shields . | . . . . . Core Remaining (%) 100 | 100 . . . . Volleys Fired 145 | 10 85 18 . 32 Largest 2 | 2 2 2 . 2 Hottest 250 | 100 100 85 . 250 Shots Fired 250 | 20 167 30 . 33 Gun 226 | 20 167 27 . 12 Cannon 2 | . . . . 2 Launcher 22 | . . 3 . 19 Special . | . . . . . Kinetic 96 | . 70 15 . 11 Thermal 132 | 20 97 12 . 3 Explosive 10 | . . 3 . 7 Electromagnetic 12 | . . . . 12 Robot Hit Streak 15 | 4 15 7 . 2 Robot Miss Streak 14 | 4 4 3 . 14 Penetration Max . | . . . . . Secondary Targets 2 | . 1 1 . . Max Gunslinging Chain 1 | . 1 1 . . Shots Hit Robots 130 | 12 105 11 . 2 Core Hits 68 | 4 45 7 . 12 Critical Hits . | . . . . . Critical Kills . | . . . . . Critical Parts Destroyed . | . . . . . Melee Attacks 2 | . . . . 2 Impact 2 | . . . . 2 Slashing . | . . . . . Piercing . | . . . . . Sneak Attacks . | . . . . . Combat Hostiles . | . . . . . Follow-up Attacks . | . . . . . Damage Inflicted 2183 | 164 1265 297 . 457 Guns 1636 | 164 1265 189 . 18 Cannons 18 | . . . . 18 Explosions 488 | . . 108 . 380 Melee 41 | . . . . 41 Ramming . | . . . . . Kinetic 348 | . 280 68 . . Thermal 1435 | 164 985 121 . 165 Explosive 201 | . . 108 . 93 Electromagnetic 158 | . . . . 158 Impact 41 | . . . . 41 Slashing . | . . . . . Piercing . | . . . . . Highest Corruption . | . . . . . Average Corruption . | . . . . . Corruption Purged . | . . . . . Overload Shots . | . . . . . Overflow Damage 1 | . . . . 1 Projectiles . | . . . . . Explosions 1 | . . . . 1 Melee . | . . . . . Knockbacks . | . . . . . Impact . | . . . . . Kinetic . | . . . . . Secondary . | . . . . . Self-Inflicted Damage 60 | . . . . 60 Shots 7 | . . . . 7 Rammed . | . . . . . Targets Rammed . | . . . . . Kicked . | . . . . . Crushed . | . . . . . Highest Temperature 324 | 215 324 195 . 232 Average Temperature 74 | 89 70 67 . 102 Received Heat Transfer 274 | . 174 . . 100 Effects 1 | . . . . 1 Interference 1 | . . . . 1 Siege Activations . | . . . . . Robots Corrupted . | . . . . . Combat Hostiles . | . . . . . Parts Fried 2 | . . . . 2 Impact Corruptions . | . . . . . Robots Melted . | . . . . . Combat Hostiles . | . . . . . Parts Melted 4 | 1 1 2 . . Heat Transferred 4087 | 481 2590 259 . 757 Parts Sabotaged . | . . . . . Parts Stolen . | . . . . . Parts Stripped . | . . . . . Power Chain Reactions . | . . . . . Missiles Intercepted . | . . . . . Alert | -11 -10 -10 -10 -9 ------- Run | Scr Mat Min Exi Min Peak Influence 241 | 15 241 140 . 45 Initial 9 | . 9 . . . Average 65 | 5 90 42 . 28 Maximum Alert Level 1 | . 1 . . . Low Security (%) 94 | 100 88 100 . 100 Level 1 5 | . 11 . . . Level 2 . | . . . . . Level 3 . | . . . . . Level 4 . | . . . . . Level 5 . | . . . . . High Security . | . . . . . Max Security . | . . . . . Squads Dispatched 2 | . 1 1 . . Investigation 2 | . 1 1 . . Extermination . | . . . . . Reinforcement . | . . . . . Assault . | . . . . . Garrison . | . . . . . Intercept . | . . . . . Construction Impeded . | . . . . . Haulers Reinforced . | . . . . . Stealth | -11 -10 -10 -10 -9 --------- Run | Scr Mat Min Exi Min Distress Signals 1 | . 1 . . . Communications Jammed . | . . . . . Distress Signals . | . . . . . Times Spotted 41 | . 22 8 . 11 Peak Tracking Total 5 | . 3 3 . 5 Tactical Retreats 3 | . 2 . . 1 Traps | -11 -10 -10 -10 -9 ------- Run | Scr Mat Min Exi Min Traps Triggered 3 | . 3 . . . Indirectly . | . . . . . Trap Hack Attempts . | . . . . . Triggered . | . . . . . Disarmed . | . . . . . Reprogrammed . | . . . . . Reused . | . . . . . Traps Extracted . | . . . . . Installed . | . . . . . Triggered . | . . . . . Machines | -11 -10 -10 -10 -9 ---------- Run | Scr Mat Min Exi Min Machines Disabled 3 | . 2 . . 1 Max in Single Turn 1 | . 1 . . 1 Machines Sabotaged . | . . . . . Garrisons Compromised . | . . . . . Overloaded Fab Kills . | . . . . . Fab Network Shutdowns . | . . . . . Hacking | -11 -10 -10 -10 -9 --------- Run | Scr Mat Min Exi Min Machines Accessed 16 | . 10 1 5 . Terminals 8 | . 8 . . . Fabricators . | . . . . . Repair Stations . | . . . . . Recycling Units 2 | . 2 . . . Scanalyzers . | . . . . . Garrison Access . | . . . . . Total Hacks 81 | . 30 1 50 . Successful 71 | . 20 1 50 . Failed 9 | . 9 . . . Catastrophic 1 | . 1 . . . Database Lockouts 1 | . 1 . . . Manual 26 | . 25 . 1 . Terminals 25 | . 25 . . . Fabricators . | . . . . . Repair Stations . | . . . . . Recycling Units 5 | . 5 . . . Scanalyzers . | . . . . . Garrison Access . | . . . . . Terminal Hacks 63 | . 12 1 50 . Record 49 | . . . 49 . Robot Analysis 5 | . 5 . . . Open Door 1 | . . 1 . . Terminal Index 2 | . 2 . . . Alert Level 1 | . 1 . . . Unreport Threat 1 | . 1 . . . Locate Traps 2 | . 2 . . . Zone Layout 1 | . 1 . . . EX-Prototype ID Bank 1 | . . . 1 . Fabricator Hacks . | . . . . . Repair Station Hacks . | . . . . . Recycling Unit Hacks 2 | . 2 . . . Report Inventory 2 | . 2 . . . Scanalyzer . | . . . . . Garrison Access Hacks . | . . . . . Unauthorized Hacks 6 | . 6 . . . Terminals 5 | . 5 . . . Botnet 5 | . 5 . . . Fabricators . | . . . . . Repair Stations . | . . . . . Recycling Units 1 | . 1 . . . Reject 1 | . 1 . . . Scanalyzers . | . . . . . Garrison Access . | . . . . . Data Cores Recovered . | . . . . . Used . | . . . . . Hacking Detections 10 | . 10 . . . Full Trace Events . | . . . . . Feedback Events . | . . . . . Feedback Blocked . | . . . . . Robot Schematics Acquired . | . . . . . Robots Built . | . . . . . Matter . | . . . . . Time . | . . . . . Total Robot Build Rating . | . . . . . Part Schematics Acquired . | . . . . . Parts Built . | . . . . . Matter . | . . . . . Time . | . . . . . Total Part Build Rating . | . . . . . Parts Repaired . | . . . . . Time . | . . . . . Parts Recycled . | . . . . . Recycled Matter . | . . . . . Retrieved Matter . | . . . . . Retrieved Components . | . . . . . Parts Scanalyzed . | . . . . . Part Schematics Acquired . | . . . . . Parts Damaged . | . . . . . Bothacking | -11 -10 -10 -10 -9 ------------ Run | Scr Mat Min Exi Min Used RIF Installer . | . . . . . Robots Hacked . | . . . . . Non-combat . | . . . . . Combat . | . . . . . Robot Hacks Applied . | . . . . . Relay Couplers Released . | . . . . . Robots Rewired . | . . . . . Allies Hacked . | . . . . . Hacks Repelled . | . . . . . Allies | -11 -10 -10 -10 -9 -------- Run | Scr Mat Min Exi Min Total Allies 1 | . . 1 . . Largest Group 1 | . . 1 1 . Highest-Rated Group 31 | . . 31 31 . Highest-Rated Ally 31 | . . 31 31 . Total Orders . | . . . . . Ally Attacks 9 | . . 9 . . Total Damage 104 | . . 104 . . Kills 2 | . . 2 . . Allies Corrupted . | . . . . . Allies Melted . | . . . . . Intel | -11 -10 -10 -10 -9 ------- Run | Scr Mat Min Exi Min Robot Analysis Total 5 | . 5 . . . Derelict Logs Recovered 3 | . . 2 . 1 Drone Launches . | . . . . . Drone Recoveries . | . . . . . Exploration | -11 -10 -10 -10 -9 ------------- Run | Scr Mat Min Exi Min Turns Passed 3183 | 96 1334 922 619 212 Spaces Moved 2473 | 54 969 802 544 104 Core 6 | 4 2 . . . Treads . | . . . . . Legs . | . . . . . Wheels 2272 | 50 772 802 544 104 Hover 195 | . 195 . . . Flight . | . . . . . Fastest Speed 50 | 50 80 100 100 120 Average Speed 101 | 86 97 100 109 122 Slowest Speed 300 | 90 300 100 130 130 Overloaded Moves . | . . . . . Propulsion Burnouts . | . . . . . Robots Hopped . | . . . . . Cave-ins Triggered . | . . . . . Exploration Rate (%) 61 | 3 98 99 92 17 Regions Visited 4 Branch Regions 3 Pre-discovered Areas 1 | . . . 1 . Known Exits Taken 1 | . . 1 . . Unknown Exits Taken 3 | 1 1 . 1 . Scrap Searched 2 | . . 2 . . Spaces Dug . | . . . . . Terrain Destroyed 95 | . . 21 . 74 Melee . | . . . . . Projectile 4 | . . . . 4 AOE 91 | . . 21 . 70 Terrain Rammed . | . . . . . Walls Destroyed . | . . . . . Machines Disabled . | . . . . . Actions | -11 -10 -10 -10 -9 --------- Run | Scr Mat Min Exi Min Total 2915 | 80 1213 895 574 153 Wait 103 | . 63 40 . . Move 2469 | 53 968 801 543 104 Hop . | . . . . . Pick Up 61 | 4 24 12 19 2 Fast Attach 23 | 8 11 4 . . Attach 13 | . 7 . 2 4 Detach 12 | . 6 2 1 3 Swap 31 | 2 19 5 . 5 Drop 56 | 3 30 13 9 1 Fire 145 | 10 85 18 . 32 Melee 2 | . . . . 2 Ram . | . . . . . Kick . | . . . . . Crush . | . . . . . Escape Stasis . | . . . . . Rewire . | . . . . . Trap . | . . . . . Miscellaneous . | . . . . . Route ------- -11/Scrapyard -10/Materials (discovered 5 exits: *Mat x3 / *Min x2) -10/Mines (discovered 3 exits: *Mat x2 / *Exi) -10/Exiles -9/Mines History --------- Turn | Location | Event 16 | -11/Scrapyard | Discovered new exit (range 16) 97 | -11/Scrapyard | Entered Materials 103 | -10/Materials | Discovered new exit (range 16) 193 | -10/Materials | Discovered new exit (range 7) 310 | -10/Materials | Build established: Mutant 444 | -10/Materials | Discovered new exit (range 9) 660 | -10/Materials | Discovered new exit (range 5) 1088 | -10/Materials | Discovered new exit (range 5) 1178 | -10/Materials | Central database locked down 1228 | -10/Materials | Build established: Scavenger-Mutant 1431 | -10/Materials | Entered Mines 1438 | -10/Mines | Learned Materials interactive machine intel 1591 | -10/Mines | Met a Derelict bent on vengeance 1654 | -10/Mines | A weapon hastily lodged in a ceiling crevice suddenly fell to the ground 1750 | -10/Mines | Core integrity fell below 50% 1869 | -10/Mines | Met a Derelict shopkeep closing up shop 1869 | -10/Mines | Discovered new exit (range 8) 1926 | -10/Mines | Identified exit to Materials 2056 | -10/Mines | Deemed a non-threat by the Exiles lab entrance 2056 | -10/Mines | Discovered new exit (range 5) 2059 | -10/Mines | Identified exit to Exiles 2070 | -10/Mines | Received a Mining Laser from a helpful Derelict 2076 | -10/Mines | Build established: Mutant 2096 | -10/Mines | Discovered exit to Materials (range 8) 2097 | -10/Mines | Learned location of 1 exit from Materials 2353 | -10/Mines | Entered Exiles 2353 | -10/Exiles | Accompanied by 1 ally 2377 | -10/Exiles | Met 8R-AWN 2395 | -10/Exiles | Met EX-HEX 2446 | -10/Exiles | Met EX-BIN 2464 | -10/Exiles | Aligned with FarCom system 2465 | -10/Exiles | Given EX-Vault access code 2513 | -10/Exiles | Opened EX-Vault 2526 | -10/Exiles | Found Firepult 2556 | -10/Exiles | Warned to stay clear of 0b10 Research branches 2665 | -10/Exiles | Met EX-DEC 2690 | -10/Exiles | Visited The Gauntlet 2827 | -10/Exiles | Learned location of Zion (-6) 2958 | -10/Exiles | Discovered new exit (range 14) 2972 | -10/Exiles | Left Exiles lab with Firepult 2972 | -10/Exiles | Entered Mines 2980 | -9/Mines | Assembled infested the area 2985 | -9/Mines | Learned Materials emergency access door positions 3004 | -9/Mines | Core integrity fell below 20% 3176 | -9/Mines | Build established: Hauler-Mutant 3184 | -9/Mines | Destroyed by as-95041 with Assembled Rifle Last Messages --------------- 03060_ Terrain Scanner fried. 03060_ Structural Scanner fried. 03060_ U-05 Engineer destroyed. 03077_ Acquired 22 matter. 03084_ Destroyed Tractor Beam. 03105_ Acquired Wheel. 03115_ K-01 Serf destroyed. 03118_ Acquired 16 matter. 03141_ The unstable cave ceiling collapses. 03144_ Lgt. Ion Engine crushed. 03144_ Destroyed Asb. Hover Unit. 03145_ The unstable cave ceiling collapses. 03148_ as-92452 destroyed. 03153_ The unstable cave ceiling collapses. 03153_ Dropped Lrg. Storage Unit. 03154_ Acquired Lrg. Storage Unit. 03159_ K-01 Serf destroyed. 03170_ The unstable cave ceiling collapses. 03176_ Particle Gun destroyed. 03183_ The unstable cave ceiling collapses. Map ----- +----------------------------------------------------+ | ????????????????????????????????????? | | ???????????????????????#????????????? | | ??????????????????????# ????????????? | | ?????????????#???#????# ????????????? | | ??????????##?# ??# ???# ????????????? | | ????###### ### ## ???# ???????? ##?? | | ???## # ## ?## ??????? #?? | | ???# # # ## ##????? #?? | | ???### ## #?# ##??? #?? | | ???# #??# ##?# #??? | | ???## ##???# ## ##?? | | ???# # #???### ##? | | ???### ##?????## #? | | ????# #######?#### #? | | ????## ## ####% ### ##? | | ?????# # % ##???##?? | | ?????" !##### ##??????? | | ?????" %=!% # #??????? | | ?????# #=#### #??????? | | ?????# ##### # # #??????? | | ?????## a ##??#### # # ????? | | ??????## ##????# ## ## " #???? | | ?????## #?????? # # #???? | | ?????# #a ##??????# # #???? | | ?????# #???????# # # #???? | | ?????### @ #??????? #? #???? | | ??????# # ##??????? ?? ???? | | ??????# #????? %?? #??? | | ??? # ### #???? # ## #???#??? | | ?# ###???#???? #??????? | | ?# #?????????? ##??????? | | ?# ######??????????######????????? | | ?# ??????????????????????????????? | | ?## ???????????????????????????????? | | ??## ???????????????????????????????? | | ???#????????????????????????????????? | | ????????????????????????????????????? | | ????????????????????????????????????? | | ????????????????????????????????????? | | ????????????????????????????????????? | | ????????????????????????????????????? | | ????????????????????????????????????? | | ????????????????????????????????????? | | ????????????????????????????????????? | | ????????????????????????????????????? | | ????????????????????????????????????? | | ????????????????????????????????????? | | ????????????????????????????????????? | | ????????????????????????????????????? | | ????????????????????????????????????? | +----------------------------------------------------+ Best States ------------- Heat Dissipation 35 Energy Generation 14 Energy Capacity 275 Matter Stores 300 Matter Capacity 300 Sight Range 18 Robot Scan Range 10 Terrain Scan Range 16 Terrain Scan Density 60 Armor Coverage 150 Propulsion Shielding 33 Evasion (%) 44 Item Schematics ----------------- None Robot Schematics ------------------ None Fabricated ------------ Nothing Alien Tech Used ----------------- None Achievements -------------- None Challenges ------------ None Game ------ Seed DecoderPrecisionSource Manual? 0 Play Time 01:08:15 Cumulative 187.9 hours Start 2020.11.13 @ 21:04:30 End 2020.11.13 @ 22:17:09 Sessions 1 Manual Loads 0 Difficulty Rogue Special Mode Halloween2020/ForbiddenLore Game No. 72 Rogue 72 Adventurer 0 Explorer 0 Win Type - Total 0 Types 0/0/0/0/0/0/0/0/0 Lore% 21 Gallery% 27 Achievement% 23 Wizard Run 0 Options --------- ASCII 0 Keyboard 1 Movement Vi Keybinds 0 Fullscreen 1 Font 12/Terminus Map View 83x54 Tactical HUD 1 Map Filters NONE Filters NONE Steam 1 RUN: 286b9e03-2d3a-4334-a82a-31e5c74e430d